Cogmind - Beta 13 @@@ ROGUE MODE // 2024.04.03 @ 21:53:54 Player: Toa of Guts Result: Self-destructed Performance ------------- Evolutions (4) 2000 Regions Visited (5) 1000 Robots Destroyed (59) 295 Value Destroyed (1486) 1486 Prototype IDs (3) 60 Alien Tech Used (0) 0 Bonus (81) 81 TOTAL SCORE: 4922 Bonus ------- High Alert Combat Kills 81 Cogmind --------- Core Integrity 720/850 Matter 119/300 Energy 85/100 System Corruption 1% Temperature Cool (0) Movement Hovering (80) Location -6/Factory Parts ------- > --- POWER (1) -------- Fusion Compressor > --- PROPULSION (4) --- Combat Airjet Xenon Bombardment Thruster Nuclear Pulse Thruster > --- UTILITY (6) ------ Structural Scanner Enhanced Optical Array Improved Signal Interpreter Cloaking Device Hacking Suite High-powered Tractor Beam > --- WEAPON (4) ------- Heavy Hammer > --- INVENTORY (5) ---- Advanced Heat Sink Advanced ECM Suite Improved System Shield Katana Chainsword Peak State ------------ > --- POWER ------------ Fusion Compressor > --- PROPULSION ------- Xenon Bombardment Thruster Xenon Bombardment Thruster Nuclear Pulse Thruster > --- UTILITY ---------- Structural Scanner Improved Trap Scanner Enhanced Optical Array Improved Signal Interpreter Hacking Suite High-powered Tractor Beam > --- WEAPON ----------- Power Maul Power Sword > --- INVENTORY -------- Advanced Heat Sink Heavy EM Pulse Gun Heavy EM Pulse Gun Heavy Hammer [Rating: 47] Favorites ----------- Power Improved Ion Engine Engine Improved Ion Engine Power Core Fusion Compressor Propulsion Armored Wheel Treads Light Treads Leg Aluminum Leg Wheel Armored Wheel Hover Unit Combat Airjet Flight Unit Xenon Bombardment Thruster Utility Large Storage Unit Device Heat Sink Storage Large Storage Unit Processor Improved Targeting Computer Hackware Hacking Suite Protection Hardened Medium Armor Plating Weapon EM Shotgun Energy Gun EM Shotgun Energy Cannon Advanced Beam Cannon Impact Weapon Heavy Hammer Slashing Weapon Katana Build | -11 -10 -9 -8 -7 -6 ------- Run | Yrd Mat Mat Mat Fac Fac Slots Evolved 8 | . . 2 2 2 2 Power . | . . . . . . Propulsion 2 | . . 1 1 . . Utility 4 | . . 1 . 1 2 Weapon 2 | . . . 1 1 . Parts Attached 79 | 7 5 17 12 7 31 Power 7 | 1 . 2 3 . 1 Engine 6 | 1 . 2 3 . . Core 1 | . . . . . 1 Reactor . | . . . . . . Propulsion 16 | 2 1 5 3 . 5 Treads 4 | . . 2 1 . 1 Leg 3 | 2 1 . . . . Wheel 5 | . . 3 2 . . Hover 1 | . . . . . 1 Flight 3 | . . . . . 3 Utility 23 | 1 2 3 2 3 12 Device 12 | . 1 2 . 1 8 Storage 3 | 1 1 . . . 1 Processor 3 | . . 1 . . 2 Hackware 1 | . . . . . 1 Protection 4 | . . . 2 2 . Artifact . | . . . . . . Weapon 33 | 3 2 7 4 4 13 Energy Gun 23 | 3 2 5 4 4 5 Energy Cannon 2 | . . 2 . . . Ballistic Gun . | . . . . . . Ballistic Cannon . | . . . . . . Launcher . | . . . . . . Special Weapon . | . . . . . . Impact Weapon 5 | . . . . . 5 Slashing Weapon 3 | . . . . . 3 Piercing Weapon . | . . . . . . Special Melee Weapon . | . . . . . . Unidentified Prototypes 2 | . . 1 1 . . Parts Lost 14 | . 3 4 5 . 2 Power 2 | . . 1 1 . . Propulsion 5 | . 1 1 2 . 1 Utility 3 | . 1 1 1 . . Weapon 4 | . 1 1 1 . 1 Highest Loss Streak 3 | . 3 3 3 . 1 To Critical Strikes . | . . . . . . Average Slot Usage (%) 88 | . 87 90 96 93 79 Engine 8 | . 14 11 9 7 2 Treads 4 | . . 6 7 7 3 Leg 6 | . 27 8 . . . Wheel 13 | . . 14 24 23 6 Flight 2 | . . . . . 11 Device 12 | . 5 10 9 12 20 Storage 8 | . 14 11 9 7 2 Processor 4 | . . 7 1 . 5 Protection 2 | . . . 7 7 2 Energy Gun 14 | . 25 7 27 26 8 Energy Cannon 4 | . . 13 . . . Impact Weapon 1 | . . . . . 5 Naked Turns . | . . . . . . Heaviest Build 54 | 13 26 37 40 49 54 Greatest Support 50 | 20 20 36 40 34 50 Greatest Overweight (x) 2 | 1 1 1 1 1 2 Average Overweight (x) . | . . . . 1 . Largest Inventory Capacity 15 | 8 15 15 15 15 15 Average Capacity 12 | 7 8 15 15 15 9 Most Carried 15 | 6 8 15 15 15 15 Average Carried 10 | 4 7 12 12 14 8 Final Capacity 15 | 8 15 15 15 15 5 Final Carried 15 | 6 6 11 15 15 5 Class Distribution -------------------- 70% | Mutant 20% | Tank 4% | Scavenger-Tank 3% | Gunner Dominant Class ---------------- Mutant | -10/Materials Mutant | -9/Materials Tank | -8/Materials Tank | -7/Factory Mutant | -6/Factory Resources | -11 -10 -9 -8 -7 -6 ----------- Run | Yrd Mat Mat Mat Fac Fac Matter Collected 1151 | 211 79 140 140 . 581 Remotely 329 | . . . . . 329 Salvage Created 2549 | . 304 839 950 . 456 Parts 142 | . 22 40 70 . 10 Haulers Intercepted 6 | . . 3 2 . 1 Recyclers Shooed 2 | . . . 1 . 1 Parts Field Recycled . | . . . . . . Retrieved Matter . | . . . . . . Parts Self-Destructed . | . . . . . . Prevented . | . . . . . . Kills | -11 -10 -9 -8 -7 -6 ------- Run | Yrd Mat Mat Mat Fac Fac Combat Hostiles Destroyed 39 | . 8 16 15 . . Guns 29 | . 8 10 11 . . Cannons 4 | . . 4 . . . AOE 6 | . . 2 4 . . Classes Destroyed 10 | . 3 3 3 . 1 Worker 3 | . 1 . . . 2 Builder 7 | . . 2 4 . 1 Hauler 6 | . . 3 2 . 1 Recycler 3 | . . . 1 . 2 Mechanic 1 | . . . . . 1 Swarmer 11 | . 3 4 4 . . Grunt 17 | . 5 7 5 . . Duelist 1 | . . . 1 . . Sentry 9 | . . 5 4 . . Hunter 1 | . . . 1 . . Best Kill Streak 9 | . 4 9 9 . 4 Combat Bots Only 7 | . 4 7 7 . . Max Kills in Single Turn 3 | . 1 3 3 . 1 Gunslinging . | . . . . . . Exploded 2 | . . 1 2 . . Melee . | . . . . . . Uniques/NPCs Destroyed . | . . . . . . Combat | -11 -10 -9 -8 -7 -6 -------- Run | Yrd Mat Mat Mat Fac Fac Hostile Shots Fired 274 | . 53 71 45 . 105 Missed 89 | . 11 17 7 . 54 Damage Taken 2564 | . 509 760 698 . 597 Core 386 | . 88 94 74 . 130 Absorbed by Shields 55 | . . . . . 55 Core Remaining (%) 85 | 100 64 76 86 100 . Volleys Fired 92 | . 25 36 23 . 8 Largest 3 | . 2 2 3 . 3 Hottest 135 | . 90 124 135 . 135 Shots Fired 202 | . 40 70 69 . 23 Gun 171 | . 40 39 69 . 23 Cannon 31 | . . 31 . . . Launcher . | . . . . . . Special . | . . . . . . Kinetic . | . . . . . . Thermal 53 | . 31 22 . . . Explosive . | . . . . . . Electromagnetic 149 | . 9 48 69 . 23 Robot Hit Streak 20 | . 7 20 20 . 6 Robot Miss Streak 5 | . 2 1 5 . 2 Penetration Max . | . . . . . . Secondary Targets 4 | . . 1 3 . . Max Gunslinging Chain 1 | . . 1 1 . . Shots Hit Robots 158 | . 28 60 52 . 18 Core Hits 105 | . 16 31 49 . 9 Critical Kills 2 | . . . . . 2 Critical Parts Destroyed 1 | . . . . . 1 Critical Strikes 8 | . 3 . . . 5 Burn 3 | . 3 . . . . Corrupt 2 | . . . . . 2 Smash 3 | . . . . . 3 Melee Attacks 23 | . . . . . 23 Impact 20 | . . . . . 20 Slashing 3 | . . . . . 3 Piercing . | . . . . . . Sneak Attacks 5 | . . . . . 5 Combat Hostiles . | . . . . . . Follow-up Attacks . | . . . . . . Damage Inflicted 3795 | . 349 1406 1244 . 796 Guns 1879 | . 347 507 838 . 187 Cannons 555 | . . 555 . . . Explosions 862 | . . 344 406 . 112 Melee 497 | . . . . . 497 Ramming 2 | . 2 . . . . Kinetic . | . . . . . . Thermal 1459 | . 267 707 373 . 112 Explosive . | . . . . . . Electromagnetic 1837 | . 80 699 871 . 187 Impact 497 | . . . . . 497 Slashing . | . . . . . . Piercing . | . . . . . . Highest Corruption 4 | . . . 4 . 1 Average Corruption 1 | . . . 4 . 1 Corruption Purged . | . . . . . . Corruption Blocked . | . . . . . . Effects 9 | . . . 4 . 5 Message Errors 1 | . . . 1 . . Matter Fused 3 | . . . 1 . 2 Heat Flow Errors 2 | . . . 2 . . Energy Discharges 2 | . . . . . 2 Parts Rejected 1 | . . . . . 1 Overload Shots . | . . . . . . Overflow Damage 333 | . . 87 20 . 226 Projectiles . | . . . . . . Explosions 111 | . . 87 20 . 4 Melee 222 | . . . . . 222 Knockbacks 1 | . . . . . 1 Impact 1 | . . . . . 1 Kinetic . | . . . . . . Secondary . | . . . . . . Self-Inflicted Damage 278 | . . 97 141 . 40 Shots 7 | . . 2 4 . 1 Rammed . | . . . . . . Targets Rammed 1 | . 1 . . . . Kicked 1 | . 1 . . . . Crushed . | . . . . . . Highest Temperature 253 | . 223 48 253 . 76 Average Temperature 81 | . 129 17 66 . 26 Received Heat Transfer 833 | . 306 252 171 . 104 Effects 1 | . 1 . . . . Interference 1 | . 1 . . . . Siege Activations . | . . . . . . Robots Corrupted . | . . . . . . Combat Hostiles . | . . . . . . Parts Fried 10 | . . 4 2 . 4 Impact Corruptions 7 | . . . . . 7 Robots Melted . | . . . . . . Combat Hostiles . | . . . . . . Parts Melted 2 | . 1 . 1 . . Heat Transferred 2558 | . 928 1030 450 . 150 Parts Sabotaged . | . . . . . . Parts Stolen . | . . . . . . Parts Stripped . | . . . . . . Power Chain Reactions 8 | . . 4 3 . 1 Alert | -11 -10 -9 -8 -7 -6 ------- Run | Yrd Mat Mat Mat Fac Fac Peak Influence 573 | . 220 573 450 204 236 Initial 204 | . . 92 190 204 99 Average 187 | . 106 169 336 204 140 Maximum Alert Level 2 | . 1 2 2 1 1 Low Security (%) 60 | 100 81 68 8 . 85 Level 1 27 | . 18 18 55 100 14 Level 2 12 | . . 13 35 . . Level 3 . | . . . . . . Level 4 . | . . . . . . Level 5 . | . . . . . . High Security . | . . . . . . Max Security . | . . . . . . Squads Dispatched 8 | . 1 2 . . 5 Investigation . | . . . . . . Extermination . | . . . . . . Reinforcement 7 | . 1 1 . . 5 Assault 1 | . . 1 . . . Garrison . | . . . . . . Intercept . | . . . . . . Searches Triggered . | . . . . . . Construction Impeded . | . . . . . . Haulers Reinforced . | . . . . . . Active Scanning Responses . | . . . . . . Cargo Convoy Interrupts . | . . . . . . Stealth | -11 -10 -9 -8 -7 -6 --------- Run | Yrd Mat Mat Mat Fac Fac Distress Signals 4 | . 1 1 1 . 1 Communications Jammed . | . . . . . . Distress Signals . | . . . . . . Times Spotted 73 | . 14 26 18 . 15 Peak Tracking Total 11 | . 3 11 8 . 6 Tactical Retreats 6 | . 1 . . . 5 Traps | -11 -10 -9 -8 -7 -6 ------- Run | Yrd Mat Mat Mat Fac Fac Traps Triggered . | . . . . . . Indirectly . | . . . . . . Trap Hack Attempts . | . . . . . . Triggered . | . . . . . . Disarmed . | . . . . . . Reprogrammed . | . . . . . . Reused . | . . . . . . Traps Extracted . | . . . . . . Installed . | . . . . . . Triggered . | . . . . . . Machines | -11 -10 -9 -8 -7 -6 ---------- Run | Yrd Mat Mat Mat Fac Fac Machines Disabled 7 | . . 6 1 . . Max in Single Turn 4 | . . 4 1 . . Machines Repaired . | . . . . . . Machines Dismantled . | . . . . . . Machines Sabotaged . | . . . . . . Overloaded Fab Kills . | . . . . . . Hacking | -11 -10 -9 -8 -7 -6 --------- Run | Yrd Mat Mat Mat Fac Fac Machines Accessed 1 | . . 1 . . . Terminals . | . . . . . . Fabricators . | . . . . . . Repair Stations . | . . . . . . Recycling Units . | . . . . . . Scanalyzers 1 | . . 1 . . . Garrison Access . | . . . . . . Total Hacks 2 | . . 2 . . . Successful 1 | . . 1 . . . Failed 1 | . . 1 . . . Catastrophic . | . . . . . . Database Lockouts . | . . . . . . Manual . | . . . . . . Terminals . | . . . . . . Fabricators . | . . . . . . Repair Stations . | . . . . . . Recycling Units . | . . . . . . Scanalyzers 2 | . . 2 . . . Garrison Access . | . . . . . . Terminal Hacks . | . . . . . . Fabricator Hacks . | . . . . . . Repair Station Hacks . | . . . . . . Recycling Unit Hacks . | . . . . . . Scanalyzer 1 | . . 1 . . . Insert Component 1 | . . 1 . . . Garrison Access Hacks . | . . . . . . Unauthorized Hacks . | . . . . . . Terminals . | . . . . . . Fabricators . | . . . . . . Repair Stations . | . . . . . . Recycling Units . | . . . . . . Scanalyzers . | . . . . . . Garrison Access . | . . . . . . Data Cores Recovered . | . . . . . . Used . | . . . . . . Hacking Detections . | . . . . . . Full Trace Events . | . . . . . . Feedback Events . | . . . . . . Feedback Blocked . | . . . . . . Robot Schematics Acquired . | . . . . . . Robots Built . | . . . . . . Authchips . | . . . . . . Time . | . . . . . . Total Robot Build Rating . | . . . . . . Part Schematics Acquired . | . . . . . . Parts Built . | . . . . . . Authchips . | . . . . . . Time . | . . . . . . Total Part Build Rating . | . . . . . . Parts Repaired . | . . . . . . Time . | . . . . . . Parts Recycled . | . . . . . . Recycled Matter . | . . . . . . Retrieved Matter . | . . . . . . Retrieved Components . | . . . . . . Parts Scanalyzed . | . . . . . . Part Schematics Acquired . | . . . . . . Parts Damaged . | . . . . . . Bothacking | -11 -10 -9 -8 -7 -6 ------------ Run | Yrd Mat Mat Mat Fac Fac Used RIF Installer . | . . . . . . Robots Hacked . | . . . . . . Non-combat . | . . . . . . Combat . | . . . . . . Robot Hacks Applied . | . . . . . . Relay Couplers Released . | . . . . . . Fabnet Peak Effective % . | . . . . . . Robots Rewired . | . . . . . . Allies Hacked . | . . . . . . Hacks Repelled . | . . . . . . Allies | -11 -10 -9 -8 -7 -6 -------- Run | Yrd Mat Mat Mat Fac Fac Total Allies . | . . . . . . Largest Group . | . . . . . . Highest-Rated Group . | . . . . . . Highest-Rated Ally . | . . . . . . Total Orders . | . . . . . . Ally Attacks . | . . . . . . Total Damage . | . . . . . . Kills . | . . . . . . Allies Corrupted . | . . . . . . Allies Melted . | . . . . . . Intel | -11 -10 -9 -8 -7 -6 ------- Run | Yrd Mat Mat Mat Fac Fac Robot Analysis Total . | . . . . . . Derelict Logs Recovered . | . . . . . . Drone Launches . | . . . . . . Drone Recoveries . | . . . . . . Exploration | -11 -10 -9 -8 -7 -6 ------------- Run | Yrd Mat Mat Mat Fac Fac Turns Passed 2502 | 59 306 882 543 76 636 Spaces Moved 1840 | 36 150 488 345 52 769 Core 7 | 7 . . . . . Treads 58 | . . . . . 58 Legs 352 | 29 150 173 . . . Wheels 817 | . . 315 345 52 105 Hover . | . . . . . . Flight 606 | . . . . . 606 Fastest Speed 34 | 50 120 90 90 101 34 Average Speed 92 | 119 127 133 104 101 53 Slowest Speed 240 | 190 190 190 105 101 240 Overloaded Moves . | . . . . . . Propulsion Burnouts . | . . . . . . Robots Hopped . | . . . . . . Cave-ins Triggered . | . . . . . . Exploration Rate (%) 23 | 3 36 42 39 2 21 Regions Visited 5 Branch Regions . Pre-discovered Areas . | . . . . . . Known Exits Taken . | . . . . . . Unknown Exits Taken 5 | 1 1 1 1 1 . Scrap Searched . | . . . . . . Spaces Dug 16 | . . . . . 16 Terrain Destroyed 84 | . . 58 8 . 18 Melee 16 | . . . . . 16 Projectile . | . . . . . . AOE 68 | . . 58 8 . 2 Terrain Rammed . | . . . . . . Walls Destroyed . | . . . . . . Machines Disabled . | . . . . . . Actions | -11 -10 -9 -8 -7 -6 --------- Run | Yrd Mat Mat Mat Fac Fac Total 2439 | 48 226 653 481 78 953 Wait 245 | . 40 68 73 . 64 Move 1835 | 35 149 487 344 51 769 Hop . | . . . . . . Pick Up 76 | 6 2 28 17 10 13 Fast Attach 22 | 6 3 1 3 1 8 Attach 38 | . 1 7 6 4 20 Detach 19 | . 1 . 1 1 16 Swap 19 | 1 1 9 3 2 3 Drop 71 | . 3 17 11 9 31 Fire 92 | . 25 36 23 . 8 Melee 21 | . . . . . 21 Ram . | . . . . . . Kick 1 | . 1 . . . . Crush . | . . . . . . Escape Stasis . | . . . . . . Rewire . | . . . . . . Trap . | . . . . . . Miscellaneous . | . . . . . . Route ------- -11/Scrapyard -10/Materials -9/Materials (discovered 2 exits: [*Mat] / [*Min]) -8/Materials -7/Factory -6/Factory (discovered 1 exit: *Low) History --------- Turn | Location | Event 26 | -11/Scrapyard | Discovered new exit (range 15) 60 | -11/Scrapyard | Entered Materials 323 | -10/Materials | Build established: Mutant 329 | -10/Materials | Discovered new exit (range 15) 331 | -10/Materials | Lost 3 parts (1n1u1w) 366 | -10/Materials | Entered another Materials area 366 | -9/Materials | Evolved 2 slots: Propulsion x1, Utility x1 921 | -9/Materials | Discovered new exit (range 5) 1165 | -9/Materials | Destroyed 7 combat bots 1166 | -9/Materials | First assault squad dispatched 1175 | -9/Materials | Lost 3 parts (1p1n1u) 1235 | -9/Materials | Discovered new exit (range 16) 1248 | -9/Materials | Entered another Materials area 1248 | -8/Materials | Evolved 2 slots: Propulsion x1, Weapon x1 1647 | -8/Materials | Lost 3 parts (1n1u1w) 1658 | -8/Materials | Build established: Tank 1700 | -8/Materials | Destroyed 7 combat bots 1749 | -8/Materials | Discovered new exit (range 11) 1791 | -8/Materials | Entered Factory 1791 | -7/Factory | Evolved 2 slots: Utility x1, Weapon x1 1863 | -7/Factory | Discovered new exit (range 3) 1867 | -7/Factory | Entered another Factory area 1867 | -6/Factory | Evolved 2 slots: Utility x2 2296 | -6/Factory | Build established: Mutant 2459 | -6/Factory | Discovered new exit (range 3) 2460 | -6/Factory | Identified exit to Lower Caves 2503 | -6/Factory | Self-destructed Last Messages --------------- 02416_ Connecting with Terminal... 02426_ Sneak attack on U-05 Engineer. 02426_ U-05 Engineer suffers critical hit (Smash). 02426_ U-05 Engineer destroyed. 02427_ Acquired 27 matter. 02431_ Connecting with Terminal... 02433_ System corrupted: Matter fused (-9). 02436_ Dropped System Shield. 02437_ Acquired Imp. System Shield. 02440_ Dropped Hvy. EM Pulse Gun. 02441_ Acquired Adv. ECM Suite. 02458_ Xenon Bombardment Thruster destroyed. 02458_ Dropped Power Maul. 02459_ Dropped Imp. Trap Scanner. 02459_ EXIT=FOUND 02460_ EXIT=IDENTIFIED: LOWER CAVES 02485_ Acquired Chainsword. 02491_ U-05 Engineer builds a Wall. 02500_ System corrupted: Energy discharge (-40). 02502_ Acquired Cmb. Airjet. Map ----- +----------------------------------------------------+ | ?????????????????## ##????####### ### ##??? | | ??################# ###???#######+### ##??? | | ??################# ###???## ### > ##??? | | ?? = # ####### =" " ##??? | | ????## # ####### ### ##### | | ????## ^ # + ###+##+####### | | ????## # ####### ### /! | | ????## # ####### ### | | ????## " F" ### #########+######## | | ????## """" ### ######[ !### """" "" | | ????## ##??## ! = ### """" "" | | ???### ##??## ! ### """" "" | | ???### ###### ###### """"""" + | | ### ######+########## """"""" ### | | ##### " # #### """"""" ### | | "T # "" "" """ #### """"""" ### | | ##### # ""R"" """ #### ### #### | | ##### # """" """ ########+####### # | | #??#### ### ###### !##### # | | #??#### ############"######## T ##?## ###### # | | #????## = ! "" ##?## #######+## | | ###################### ###### ##?## ## ! | | ###################### ###### ##?## ## | | """"" ???????###### ######## ####?## ## | | """"" ##?????######+######## ####?# # | | """ ##?????##[ @ #### ??? + | | ##?????## ##?#####??# # | | ##?????## ! ##?#####??##### | | ###########?????##= ##????????##### | | ###########?????#############???????????########## | | | | | | | | | | | | | | | | | | | | | | | | | | | | | | | | | | | | | | | | | +----------------------------------------------------+ Best States ------------- Heat Dissipation 66 Energy Generation 25 Energy Capacity 265 Matter Stores 300 Matter Capacity 300 Sight Range 22 Terrain Scan Density 10 Cloak Strength 2 Armor Coverage 225 Evasion (%) 63 Targeting Accuracy 6 Recoil Reduction 2 Offensive Hacking 10 Item Schematics ----------------- None Robot Schematics ------------------ None Fabricated ------------ Nothing Alien Tech Used ----------------- None Achievements -------------- Part-time Excavator Challenges ------------ None Game ------ Seed SpectralWeaponsInsulator Manual? 0 Play Time 01:05:51 Cumulative 33.3 hours Start 2024.04.03 @ 20:46:47 End 2024.04.03 @ 21:53:54 Sessions 1 Manual Loads 0 Difficulty Rogue Special Mode None Game No. 26 Rogue 26 Adventurer 0 Explorer 0 Win Type - Total 0 Types 0/0/0/0/0/0/0/0/0 Lore% 18 Gallery% 30 Achievement% 21 Wizard Run 0 Options --------- Layout 0 ASCII 0 Keyboard 0 Movement Mouse Keybinds 0 Fullscreen 1 Font 24/X11 Map View 76x50 Zoom Use 0% Tactical HUD 1 Map Filters NONE Filters NONE Steam 1 RUN: af56357c-05ee-4bf3-8153-d9be729b8f7c